fUSD/lending_fUSD_20250221
["ID","MTS","AMOUNT","RATE_DAILY","PERIOD"]
[353994515,1740175878698,-241.71233813,0.00011115,2]
[353994516,1740175878709,-258.28766187,0.00011115,2]
[353994517,1740175878718,-491.94,0.00011115,2]
[353994518,1740175878727,-500.0,0.00011196,2]
[353994519,1740175878737,-500.0,0.00011196,2]
[353994520,1740175878747,-289.12,0.00011196,2]
[353994521,1740175878756,-500.0,0.00011279,2]
[353994522,1740175878766,-591.14,0.00011279,2]
[353994523,1740175878776,-500.0,0.00011361,2]
[353994524,1740175878786,-465.51295276,0.00011443,2]
[353994526,1740175914222,523.04,8.767e-05,2]
[353994527,1740175989850,163.75,7.558e-05,2]
[353994528,1740175990060,163.75,8.503e-05,2]
[353994529,1740175990362,163.75,9.448e-05,2]
[353994530,1740176366534,1969.84,8.392e-05,2]
[353994531,1740176458806,2800.0,8.66e-05,2]
[353994532,1740176690739,500.0,0.0002,120]
[353994533,1740176719609,762.41747423,9e-05,2]
[353994534,1740176735679,3976.49252577,8e-05,2]
[353994535,1740176735704,6023.50747423,8e-05,2]
[353994536,1740176752489,3976.49252577,9e-05,2]
[353994537,1740176752508,5023.50747423,9e-05,2]
[353994538,1740176753497,4976.49252577,6.94e-05,2]
[353994539,1740176753517,10000.0,6.94e-05,2]
[353994540,1740176753540,14185.26732367,6.94e-05,2]
[353994541,1740176765446,1179.5355631,8e-05,2]
[353994545,1740176795796,500.0,0.0002,120]
[353995262,1740176883955,1187.75531545,9.5e-05,2]
[353995266,1740176929999,350.56,9.364e-05,2]
[353995267,1740176953115,2724.95,9.29e-05,2]
[353995268,1740176980991,175.18,8.767e-05,2]
[353995273,1740177022044,799.25,9.385e-05,2]
[353995274,1740177028583,531.91,9.385e-05,2]
[353995291,1740177032015,-262.18282224,9.562e-05,2]
[353995292,1740177032217,-237.81717776,9.562e-05,2]
[353995293,1740177032227,-1060.0,9.711e-05,2]
[353995294,1740177032237,-150.0,9.756e-05,2]
[353995295,1740177032246,-1000.0,9.756e-05,2]
[353995296,1740177032256,-1107.21917367,9.756e-05,2]
[353995297,1740177032311,-1592.78082633,9.756e-05,2]
[353995298,1740177032321,-1134.58116977,9.756e-05,2]
[353995299,1740177032332,-681.79607294,9.756e-05,2]
[353995300,1740177032344,-340.97585375,9.756e-05,2]
[353995301,1740177032355,-342.64690354,9.756e-05,2]
[353995302,1740177032365,-166.77,9.769e-05,2]
[353995303,1740177032374,-205.0,9.8e-05,2]
[353995304,1740177032384,-794.06291161,9.828e-05,2]
[353995305,1740177032393,-1852.42,9.835e-05,2]
[353995306,1740177032403,-1000.0,9.893e-05,2]
[353995307,1740177032412,-3048.82158931,9.9e-05,2]
[353995310,1740177032430,-12605.84280233,9.9e-05,2]
[353995340,1740177032849,1128.39,9.385e-05,2]
[353995756,1740177037932,-500.0,9.9e-05,2]
[353995758,1740177037944,-478.505,9.9e-05,2]
[353995766,1740177038014,-4322.30378335,9.9e-05,2]
[353995768,1740177038024,-682.5277,9.9e-05,2]
[353995770,1740177038034,-7164.06,9.915e-05,2]
[353995772,1740177038044,-2000.0,9.952e-05,2]
[353995773,1740177038057,-150.0,9.997e-05,2]
[353995774,1740177038068,-1500.0,9.998e-05,2]
[353995775,1740177038080,-1000.0,9.999e-05,2]
[353995776,1740177038092,-550.0,0.0001,2]
[353995777,1740177038103,-100376.02198434,0.0001,2]
[353995778,1740177038114,-17310.8733732,0.0001,2]
[353995779,1740177038171,-2652.48229603,0.0001,2]
[353996002,1740177040743,-1674.74578436,0.0001,2]
[353996003,1740177040829,-7699.53920617,0.0001,2]
[353996004,1740177041621,-124920.53606641,0.0001,2]
[353996005,1740177041784,-1456.93413007,0.0001,2]
[353996006,1740177041794,-244.03,0.00010038,2]
[353996007,1740177041805,-200.0,0.00010196,2]
[353996008,1740177041815,-1060.0,0.00010222,2]
[353996009,1740177041824,-163.75,0.00010393,2]
[353996010,1740177041833,-250.0,0.00010417,2]
[353996011,1740177041843,-179.27,0.00010453,2]
[353996012,1740177041852,-300.0,0.00010453,2]
[353996013,1740177041862,-162.78,0.00010478,2]
[353996014,1740177041871,-920.03,0.00010583,2]
[353996016,1740177041881,-1969.84,0.00010656,2]
[353996018,1740177041895,-9451.96,0.00010689,2]
[353996020,1740177041904,-204.45,0.00010712,2]
[353996022,1740177041913,-150.0,0.00010731,2]
[353996024,1740177041923,-150.0,0.00010732,2]
[353996026,1740177041932,-3983.16,0.00010758,2]
[353996028,1740177041941,-1060.0,0.0001076,2]
[353996030,1740177041951,-587.52026803,0.00010796,2]
[353996032,1740177041965,-3218.72,0.000108,2]
[353996034,1740177041974,-1480.03,0.00010856,2]
[353996036,1740177041984,-1808.66491962,0.00010883,2]
[353996189,1740177043206,-22091.33508038,0.00010883,2]
[353996191,1740177043216,-2280.61,0.00010896,2]
[353996194,1740177043227,-996.04,0.00010958,2]
[353996196,1740177043237,-213.27,0.00010958,2]
[353996198,1740177043247,-500.0,0.00010958,2]
[353996200,1740177043256,-500.0,0.00010958,2]
[353996202,1740177043265,-542.7452636,0.00010958,2]
[353996204,1740177043274,-645.79,0.00010958,2]
[353996206,1740177043283,-500.0,0.00010958,2]
[353996208,1740177043292,-500.0,0.00010958,2]
[353996210,1740177043301,-500.0,0.00010958,2]
[353996212,1740177043311,-500.0,0.00010958,2]
[353996214,1740177043320,-500.0,0.00010958,2]
[353996216,1740177043328,-500.0,0.00010958,2]
[353996218,1740177043338,-500.0,0.00010958,2]
[353996219,1740177043347,-500.0,0.00010958,2]
[353996221,1740177043357,-500.0,0.00010958,2]
[353996223,1740177043366,-500.0,0.00010958,2]
[353996225,1740177043375,-500.0,0.00010958,2]
[353996227,1740177043384,-500.0,0.00010958,2]
[353996229,1740177043393,-500.0,0.00010958,2]
[353996231,1740177043403,-500.0,0.00010958,2]
[353996233,1740177043412,-500.0,0.00010958,2]
[353996235,1740177043421,-500.0,0.00010958,2]
[353996236,1740177043430,-500.0,0.00010958,2]
[353996237,1740177043439,-500.0,0.00010958,2]
[353996238,1740177043447,-500.0,0.00010958,2]
[353996239,1740177043456,-500.0,0.00010958,2]
[353996240,1740177043465,-500.0,0.00010958,2]
[353996241,1740177043474,-255.0,0.00010996,2]
[353996242,1740177043484,-2763.9056,0.00011014,2]
[353996243,1740177043493,-1500.0,0.00011014,2]
[353996244,1740177043503,-320.57451209,0.00011015,2]
[353996245,1740177043514,-2000.0,0.00011019,2]
[353996246,1740177043524,-996.04,0.00011041,2]
[353996247,1740177043533,-500.0,0.00011041,2]
[353996248,1740177043542,-500.0,0.00011041,2]
[353996249,1740177043552,-645.79,0.00011041,2]
[353996251,1740177043563,-500.0,0.00011041,2]
[353996253,1740177043573,-500.0,0.00011041,2]
[353996255,1740177043582,-500.0,0.00011041,2]
[353996257,1740177043592,-587.39,0.00011041,2]
[353996259,1740177043602,-500.0,0.00011041,2]
[353996261,1740177043611,-500.0,0.00011041,2]
[353996263,1740177043620,-265.46,0.00011041,2]
[353996265,1740177043630,-500.0,0.00011041,2]
[353996267,1740177043639,-500.0,0.00011041,2]
[353996269,1740177043648,-500.0,0.00011041,2]
[353996271,1740177043657,-500.0,0.00011041,2]
[353996273,1740177043666,-500.0,0.00011041,2]
[353996275,1740177043675,-500.0,0.00011041,2]
[353996277,1740177043684,-500.0,0.00011041,2]
[353996278,1740177043693,-500.0,0.00011041,2]
[353996279,1740177043702,-500.0,0.00011041,2]
[353996280,1740177043711,-500.0,0.00011041,2]
[353996281,1740177043720,-6256.68656205,0.00011099,2]
[353996282,1740177043729,-6256.68656201,0.00011099,2]
[353996283,1740177043739,-2429.25833131,0.00011099,2]
[353996284,1740177043748,-2429.25833125,0.00011099,2]
[353996285,1740177043757,-500.0,0.00011114,2]
[353996286,1740177043766,-500.0,0.00011114,2]
[353996287,1740177043974,-500.0,0.00011114,2]
[353996288,1740177043984,-500.0,0.00011114,2]
[353996289,1740177043996,-500.0,0.00011114,2]
[353996290,1740177044005,-500.0,0.00011114,2]
[353996291,1740177044014,-500.0,0.00011114,2]
[353996292,1740177044024,-500.0,0.00011114,2]
[353996293,1740177044033,-500.0,0.00011114,2]
[353996294,1740177044043,-500.0,0.00011114,2]
[353996295,1740177044052,-500.0,0.00011114,2]
[353996296,1740177044062,-500.0,0.00011114,2]
[353996297,1740177044072,-500.0,0.00011114,2]
[353996298,1740177044081,-500.0,0.00011114,2]
[353996299,1740177044091,-500.0,0.00011114,2]
[353996300,1740177044101,-535.44786384,0.00011114,2]
[353996301,1740177044110,-500.0,0.00011114,2]
[353996302,1740177044119,-500.0,0.00011114,2]
[353996303,1740177044129,-500.0,0.00011114,2]
[353996304,1740177044138,-500.0,0.00011114,2]
[353996305,1740177044148,-500.0,0.00011114,2]
[353996306,1740177044158,-500.0,0.00011114,2]
[353996307,1740177044167,-500.0,0.00011114,2]
[353996308,1740177044176,-500.0,0.00011114,2]
[353996309,1740177044186,-500.0,0.00011114,2]
[353996310,1740177044195,-500.0,0.00011114,2]
[353996311,1740177044205,-500.0,0.00011114,2]
[353996312,1740177044214,-500.0,0.00011114,2]
[353996313,1740177044224,-500.0,0.00011114,2]
[353996314,1740177044233,-500.0,0.00011114,2]
[353996315,1740177044242,-500.0,0.00011114,2]
[353996316,1740177044251,-500.0,0.00011114,2]
[353996317,1740177044261,-644.4,0.00011114,2]
[353996318,1740177044270,-500.0,0.00011114,2]
[353996319,1740177044279,-500.0,0.00011114,2]
[353996320,1740177044288,-500.0,0.00011114,2]
[353996321,1740177044297,-500.0,0.00011114,2]
[353996322,1740177044307,-500.0,0.00011114,2]
[353996323,1740177044316,-500.0,0.00011114,2]
[353996324,1740177044325,-500.0,0.00011114,2]
[353996325,1740177044334,-500.0,0.00011114,2]
[353996327,1740177044344,-500.0,0.00011114,2]
[353996328,1740177044353,-500.0,0.00011114,2]
[353996329,1740177044362,-500.0,0.00011114,2]
[353996330,1740177044371,-500.0,0.00011114,2]
[353996331,1740177044380,-500.0,0.00011114,2]
[353996332,1740177044389,-500.0,0.00011114,2]
[353996333,1740177044398,-500.0,0.00011114,2]
[353996334,1740177044408,-200.82135699,0.00011114,2]
[353996335,1740177044417,-500.0,0.00011114,2]
[353996337,1740177044426,-500.0,0.00011114,2]
[353996339,1740177044435,-500.0,0.00011114,2]
[353996340,1740177044444,-500.0,0.00011114,2]
[353996341,1740177044453,-589.05,0.00011114,2]
[353996342,1740177044462,-500.0,0.00011114,2]
[353996343,1740177044471,-259.71,0.00011114,2]
[353996344,1740177044480,-545.47,0.00011114,2]
[353996345,1740177044489,-584.58413038,0.00011114,2]
[353996346,1740177044498,-1356.75,0.00011114,2]
[353996347,1740177044507,-858.91,0.00011114,2]
[353996348,1740177044516,-500.0,0.00011114,2]
[353996349,1740177044525,-500.0,0.00011114,2]
[353996350,1740177044535,-189.15,0.00011114,2]
[353996351,1740177044544,-500.0,0.00011114,2]
[353996352,1740177044553,-500.0,0.00011114,2]
[353996353,1740177044564,-500.0,0.00011114,2]
[353996354,1740177044574,-500.0,0.00011114,2]
[353996355,1740177044583,-500.0,0.00011114,2]
[353996356,1740177044592,-500.0,0.00011114,2]
[353996357,1740177044601,-500.0,0.00011114,2]
[353996358,1740177044610,-500.0,0.00011114,2]
[353996359,1740177044619,-500.0,0.00011115,2]
[353996360,1740177044628,-518.05047692,0.00011115,2]
[353996361,1740177044637,-500.0,0.00011115,2]
[353996362,1740177044646,-500.0,0.00011115,2]
[353996363,1740177044655,-502.13438114,0.00011115,2]
[353996364,1740177044665,-500.0,0.00011115,2]
[353996365,1740177044674,-500.0,0.00011115,2]
[353996366,1740177044683,-500.0,0.00011115,2]
[353996367,1740177044692,-500.0,0.00011115,2]
[353996368,1740177044701,-500.0,0.00011115,2]
[353996369,1740177044710,-565.4,0.00011115,2]
[353996370,1740177044719,-500.0,0.00011115,2]
[353996371,1740177044728,-500.0,0.00011115,2]
[353996372,1740177044737,-500.0,0.00011115,2]
[353996373,1740177044746,-501.16319771,0.00011115,2]
[353996374,1740177044755,-501.96953405,0.00011115,2]
[353996375,1740177044764,-500.0,0.00011115,2]
[353996376,1740177044773,-500.0,0.00011115,2]
[353996377,1740177044782,-500.0,0.00011115,2]
[353996378,1740177044791,-500.0,0.00011115,2]
[353996379,1740177044800,-500.0,0.00011115,2]
[353996380,1740177044810,-500.0,0.00011115,2]
[353996381,1740177044819,-636.47,0.00011115,2]
[353996382,1740177044828,-500.0,0.00011115,2]
[353996383,1740177044836,-500.0,0.00011115,2]
[353996384,1740177044845,-500.0,0.00011115,2]
[353996385,1740177044855,-500.0,0.00011115,2]
[353996386,1740177044864,-500.0,0.00011115,2]
[353996387,1740177044873,-500.0,0.00011115,2]
[353996388,1740177044883,-500.0,0.00011115,2]
[353996389,1740177044892,-500.0,0.00011115,2]
[353996390,1740177044901,-500.0,0.00011115,2]
[353996391,1740177044910,-500.0,0.00011115,2]
[353996392,1740177044919,-500.0,0.00011115,2]
[353996393,1740177044928,-500.0,0.00011115,2]
[353996394,1740177044937,-500.0,0.00011116,2]
[353996395,1740177044946,-500.0,0.00011116,2]
[353996396,1740177044955,-500.0,0.00011116,2]
[353996397,1740177044964,-500.0,0.00011116,2]
[353996398,1740177044973,-500.0,0.00011116,2]
[353996399,1740177044982,-500.60435142,0.00011116,2]
[353996400,1740177044992,-500.0,0.00011116,2]
[353996401,1740177045003,-500.0,0.00011116,2]
[353996402,1740177045012,-500.0,0.00011116,2]
[353996403,1740177045021,-500.0,0.00011116,2]
[353996404,1740177045030,-500.92195474,0.00011116,2]
[353996405,1740177045040,-500.0,0.00011116,2]
[353996406,1740177045049,-542.68,0.00011116,2]
[353996407,1740177045058,-500.0,0.00011116,2]
[353996408,1740177045068,-500.0,0.00011116,2]
[353996409,1740177045079,-500.0,0.00011116,2]
[353996410,1740177045089,-500.0,0.00011116,2]
[353996411,1740177045098,-500.0,0.00011116,2]
[353996412,1740177045107,-500.0,0.00011116,2]
[353996413,1740177045116,-500.0,0.00011116,2]
[353996414,1740177045125,-500.0,0.00011116,2]
[353996415,1740177045134,-501.15305456,0.00011116,2]
[353996416,1740177045143,-996.04,0.00011123,2]
[353996417,1740177045153,-500.0,0.00011123,2]
[353996418,1740177045162,-500.0,0.00011123,2]
[353996419,1740177045171,-645.79,0.00011123,2]
[353996420,1740177045181,-500.0,0.00011123,2]
[353996421,1740177045190,-500.0,0.00011123,2]
[353996422,1740177045200,-515.08,0.00011123,2]
[353996423,1740177045209,-500.0,0.00011123,2]
[353996424,1740177045218,-235.18,0.00011123,2]
[353996425,1740177045227,-500.0,0.00011123,2]
[353996426,1740177045237,-500.0,0.00011123,2]
[353996427,1740177045246,-500.0,0.00011123,2]
[353996428,1740177045255,-1000.0,0.00011126,2]
[353996429,1740177045264,-2700.0,0.00011126,2]
[353996430,1740177045273,-2500.0,0.00011126,2]
[353996431,1740177045283,-1000.0,0.0001113,2]
[353996432,1740177045292,-510.16,0.00011138,2]
[353996433,1740177045301,-500.0,0.00011196,2]
[353996434,1740177045311,-500.0,0.00011196,2]
[353996435,1740177045320,-500.0,0.00011196,2]
[353996436,1740177045329,-500.0,0.00011196,2]
[353996437,1740177045338,-500.0,0.00011196,2]
[353996438,1740177045347,-500.0,0.00011196,2]
[353996439,1740177045357,-500.0,0.00011196,2]
[353996440,1740177045366,-500.0,0.00011196,2]
[353996441,1740177045375,-500.0,0.00011196,2]
[353996442,1740177045384,-500.0,0.00011196,2]
[353996443,1740177045394,-500.0,0.00011196,2]
[353996444,1740177045403,-500.0,0.00011196,2]
[353996445,1740177045412,-500.0,0.00011196,2]
[353996446,1740177045420,-500.0,0.00011196,2]
[353996447,1740177045430,-500.0,0.00011196,2]
[353996448,1740177045439,-500.0,0.00011196,2]
[353996449,1740177045448,-500.0,0.00011196,2]
[353996450,1740177045458,-500.0,0.00011196,2]
[353996451,1740177045467,-500.0,0.00011196,2]
[353996452,1740177045477,-500.0,0.00011196,2]
[353996453,1740177045486,-500.0,0.00011196,2]
[353996454,1740177045494,-500.0,0.00011196,2]
[353996455,1740177045503,-500.0,0.00011196,2]
[353996456,1740177045513,-500.0,0.00011196,2]
[353996457,1740177045522,-500.0,0.00011196,2]
[353996458,1740177045532,-500.0,0.00011196,2]
[353996459,1740177045542,-528.62,0.00011196,2]
[353996460,1740177045552,-165.73,0.00011196,2]
[353996461,1740177045564,-500.0,0.00011196,2]
[353996462,1740177045573,-500.0,0.00011196,2]
[353996463,1740177045583,-500.0,0.00011196,2]
[353996464,1740177045592,-500.0,0.00011196,2]
[353996465,1740177045601,-500.0,0.00011196,2]
[353996466,1740177045610,-500.0,0.00011196,2]
[353996467,1740177045619,-500.0,0.00011196,2]
[353996468,1740177045628,-500.0,0.00011196,2]
[353996469,1740177045637,-500.0,0.00011196,2]
[353996470,1740177045646,-500.0,0.00011196,2]
[353996471,1740177045655,-500.0,0.00011196,2]
[353996472,1740177045664,-500.0,0.00011196,2]
[353996473,1740177045673,-500.0,0.00011196,2]
[353996474,1740177045682,-500.0,0.00011196,2]
[353996475,1740177045691,-1356.75,0.00011196,2]
[353996476,1740177045700,-858.91,0.00011196,2]
[353996477,1740177045710,-500.0,0.00011196,2]
[353996479,1740177045719,-500.0,0.00011196,2]
[353996480,1740177045728,-500.0,0.00011196,2]
[353996481,1740177045737,-500.0,0.00011196,2]
[353996482,1740177045747,-500.0,0.00011196,2]
[353996483,1740177045756,-500.0,0.00011196,2]
[353996484,1740177045765,-500.0,0.00011196,2]
[353996485,1740177045774,-565.95,0.00011197,2]
[353996486,1740177045783,-500.0,0.00011197,2]
[353996487,1740177045792,-500.0,0.00011198,2]
[353996488,1740177045801,-996.04,0.00011205,2]
[353996489,1740177045812,-500.0,0.00011205,2]
[353996490,1740177045822,-500.0,0.00011205,2]
[353996491,1740177045831,-645.79,0.00011205,2]
[353996492,1740177045840,-500.0,0.00011205,2]
[353996493,1740177045849,-500.0,0.00011205,2]
[353996494,1740177045858,-500.0,0.00011205,2]
[353996495,1740177045868,-434.41,0.00011205,2]
[353996496,1740177045877,-500.0,0.00011205,2]
[353996497,1740177045886,-500.0,0.00011205,2]
[353996498,1740177045895,-2500.0,0.00011261,2]
[353996499,1740177045904,-535.79,0.00011279,2]
[353996500,1740177045913,-449.28,0.00011279,2]
[353996501,1740177045923,-239.34,0.00011279,2]
[353996502,1740177045933,-366.73125185,0.00011279,2]
[353996503,1740177045943,-392.5,0.00011279,2]
[353996504,1740177045952,-255.6,0.00011279,2]
[353996505,1740177045962,-520.58,0.00011279,2]
[353996506,1740177045972,-500.0,0.00011279,2]
[353996507,1740177045981,-500.0,0.00011279,2]
[353996508,1740177045994,-500.0,0.00011279,2]
[353996509,1740177046005,-480.26380377,0.00011279,2]
[353996510,1740177046014,-500.0,0.00011279,2]
[353996511,1740177046023,-500.0,0.00011279,2]
[353996512,1740177046034,-228.95,0.00011279,2]
[353996513,1740177046044,-500.0,0.00011279,2]
[353996514,1740177046053,-500.0,0.00011279,2]
[353996515,1740177046064,-371.64,0.00011279,2]
[353996516,1740177046073,-500.0,0.00011279,2]
[353996517,1740177046084,-500.0,0.00011279,2]
[353996518,1740177046093,-500.0,0.00011279,2]
[353996519,1740177046102,-500.0,0.00011279,2]
[353996520,1740177046111,-500.0,0.00011279,2]
[353996521,1740177046120,-173.21,0.00011279,2]
[353996522,1740177046129,-500.0,0.00011279,2]
[353996523,1740177046138,-500.0,0.00011279,2]
[353996524,1740177046148,-500.0,0.00011279,2]
[353996525,1740177046157,-500.0,0.00011279,2]
[353996526,1740177046167,-500.0,0.00011279,2]
[353996527,1740177046176,-500.0,0.00011279,2]
[353996528,1740177046185,-500.0,0.00011279,2]
[353996529,1740177046194,-520.44,0.00011279,2]
[353996530,1740177046204,-575.94,0.00011279,2]
[353996531,1740177046213,-500.0,0.00011279,2]
[353996532,1740177046222,-531.31469331,0.00011279,2]
[353996533,1740177046231,-1356.75,0.00011279,2]
[353996534,1740177046240,-858.91,0.00011279,2]
[353996535,1740177046250,-618.68,0.00011279,2]
[353996536,1740177046259,-500.0,0.00011279,2]
[353996537,1740177046268,-374.97,0.00011279,2]
[353996538,1740177046278,-500.0,0.00011279,2]
[353996539,1740177046288,-500.0,0.00011279,2]
[353996540,1740177046297,-500.0,0.00011279,2]
[353996541,1740177046307,-500.0,0.00011279,2]
[353996542,1740177046316,-996.04,0.00011287,2]
[353996543,1740177046326,-500.0,0.00011287,2]
[353996544,1740177046335,-500.0,0.00011287,2]
[353996545,1740177046344,-645.79,0.00011287,2]
[353996546,1740177046354,-500.0,0.00011287,2]
[353996547,1740177046363,-500.0,0.00011287,2]
[353996548,1740177046372,-500.0,0.00011287,2]
[353996549,1740177046381,-500.0,0.00011287,2]
[353996550,1740177046391,-2429.25833125,0.00011297,2]
[353996551,1740177046400,-1060.0,0.00011326,2]
[353996552,1740177046409,-163.75,0.00011337,2]
[353996553,1740177046419,-500.0,0.0001135,2]
[353996554,1740177046428,-376.01,0.00011361,2]
[353996555,1740177046437,-500.0,0.00011361,2]
[353996556,1740177046447,-500.0,0.00011361,2]
[353996557,1740177046456,-500.0,0.00011361,2]
[353996559,1740177046465,-500.0,0.00011361,2]
[353996560,1740177046474,-500.0,0.00011361,2]
[353996561,1740177046484,-500.0,0.00011361,2]
[353996562,1740177046493,-500.0,0.00011361,2]
[353996563,1740177046502,-500.0,0.00011361,2]
[353996564,1740177046511,-500.0,0.00011361,2]
[353996565,1740177046520,-500.0,0.00011361,2]
[353996566,1740177046529,-500.0,0.00011361,2]
[353996567,1740177046538,-500.0,0.00011361,2]
[353996568,1740177046548,-252.4,0.00011361,2]
[353996569,1740177046558,-500.0,0.00011361,2]
[353996570,1740177046568,-521.14,0.00011361,2]
[353996571,1740177046577,-500.0,0.00011361,2]
[353996572,1740177046586,-500.0,0.00011361,2]
[353996573,1740177046595,-1356.75,0.00011361,2]
[353996574,1740177046605,-858.91,0.00011361,2]
[353996575,1740177046615,-500.0,0.00011361,2]
[353996576,1740177046624,-500.0,0.00011361,2]
[353996577,1740177046634,-500.0,0.00011361,2]
[353996578,1740177046644,-500.0,0.00011361,2]
[353996579,1740177046654,-500.0,0.00011361,2]
[353996580,1740177046663,-996.04,0.00011369,2]
[353996581,1740177046672,-500.0,0.00011369,2]
[353996582,1740177046682,-500.0,0.00011369,2]
[353996583,1740177046691,-645.79,0.00011369,2]
[353996584,1740177046700,-500.0,0.00011369,2]
[353996585,1740177046709,-500.0,0.00011369,2]
[353996586,1740177046719,-500.0,0.00011369,2]
[353996587,1740177046728,-500.0,0.00011369,2]
[353996588,1740177046739,-646.51,0.00011443,2]
[353996589,1740177046749,-174.61,0.00011443,2]
[353996590,1740177046758,-631.89,0.00011443,2]
[353996591,1740177046767,-481.42753229,0.00011443,2]
[353996592,1740177046776,-304.85863779,0.00011443,2]
[353996593,1740177046786,-500.0,0.00011443,2]
[353996594,1740177046795,-500.0,0.00011443,2]
[353996595,1740177046804,-624.2,0.00011443,2]
[353996596,1740177046814,-500.0,0.00011443,2]
[353996597,1740177046823,-439.32,0.00011443,2]
[353996598,1740177046833,-500.0,0.00011443,2]
[353996599,1740177046842,-464.12,0.00011443,2]
[353996600,1740177046852,-500.0,0.00011443,2]
[353996601,1740177046861,-1356.75,0.00011443,2]
[353996602,1740177046870,-858.91,0.00011443,2]
[353996603,1740177046880,-500.0,0.00011443,2]
[353996604,1740177046889,-500.0,0.00011443,2]
[353996605,1740177046898,-500.0,0.00011443,2]
[353996606,1740177046907,-500.0,0.00011443,2]
[353996607,1740177046917,-500.0,0.00011443,2]
[353996608,1740177046926,-996.04,0.00011452,2]
[353996609,1740177046935,-500.0,0.00011452,2]
[353996610,1740177046944,-500.0,0.00011452,2]
[353996611,1740177046954,-645.79,0.00011452,2]
[353996612,1740177046965,-500.0,0.00011452,2]
[353996613,1740177046975,-500.0,0.00011452,2]
[353996614,1740177046984,-500.0,0.00011452,2]
[353996615,1740177046994,-500.0,0.00011452,2]
[353996616,1740177047007,-1000.0,0.00011502,2]
[353996617,1740177047017,-256.52,0.00011525,2]
[353996618,1740177047026,-500.0,0.00011525,2]
[353996619,1740177047036,-500.0,0.00011525,2]
[353996620,1740177047046,-244.88,0.00011525,2]
[353996621,1740177047055,-500.0,0.00011525,2]
[353996622,1740177047065,-500.0,0.00011525,2]
[353996623,1740177047075,-1356.75,0.00011525,2]
[353996624,1740177047085,-858.91,0.00011525,2]
[353996625,1740177047095,-500.0,0.00011525,2]
[353996626,1740177047104,-632.72910273,0.00011525,2]
[353996627,1740177047113,-500.0,0.00011525,2]
[353996628,1740177047122,-500.0,0.00011525,2]
[353996629,1740177047132,-500.0,0.00011525,2]
[353996630,1740177047141,-996.04,0.00011534,2]
[353996631,1740177047151,-500.0,0.00011534,2]
[353996632,1740177047160,-645.79,0.00011534,2]
[353996633,1740177047170,-500.0,0.00011534,2]
[353996634,1740177047179,-500.0,0.00011534,2]
[353996635,1740177047188,-500.0,0.00011534,2]
[353996636,1740177047198,-500.0,0.00011534,2]
[353996637,1740177047208,-150.0,0.00011558,2]
[353996638,1740177047219,-2429.25833125,0.00011597,2]
[353996639,1740177047228,-150.0,0.00011599,2]
[353996640,1740177047237,-500.0,0.00011607,2]
[353996641,1740177047247,-543.09,0.00011607,2]